fUST/lending_fUST_20251030
["ID","MTS","AMOUNT","RATE_DAILY","PERIOD"]
[392661672,1761792249391,-10000.01,0.00018,2]
[392661673,1761792249404,-10000.01,0.00018,2]
[392661674,1761792249422,-5000.0,0.00017641,2]
[392661675,1761792249431,-5000.01,0.00018,2]
[392661676,1761792249445,-10000.01,0.00018,2]
[392661677,1761792250066,-10000.01,0.00018,2]
[392661678,1761792250198,-10000.01,0.00018,2]
[392661679,1761792250324,-574.3683022,0.00018,2]
[392661680,1761792251752,-183.46693848,0.0001936,3]
[392661681,1761792257287,294.39290055,0.0001936,2]
[392661682,1761792257386,-215.53506521,0.0001936,3]
[392661683,1761792257548,3412.61,0.00018,2]
[392661684,1761792259059,-159.26559248,0.0001936,3]
[392661685,1761792262129,-289.79061869,0.0001936,3]
[392661686,1761792265168,-214.37675092,0.0001936,3]
[392661687,1761792265415,5000.0,0.0001936,2]
[392661689,1761792273806,144.27049505,0.0001936,2]
[392661690,1761792273831,4855.72950495,0.0001936,2]
[392661691,1761792274729,-404.82508367,0.0001936,3]
[392661692,1761792276649,-164.77441272,0.0001936,3]
[392661693,1761792278471,-172.05713814,0.0001936,3]
[392661694,1761792280123,-198.25850035,0.0001936,3]
[392661695,1761792281876,3943.6624954,0.0001936,2]
[392661696,1761792290927,1200.61799965,0.0001936,2]
[392661697,1761792290954,3799.38200035,0.0001936,2]
[392661698,1761792291685,-346.4762763,0.0001936,3]
[392661699,1761792293868,-177.76610083,0.0001936,3]
[392661700,1761792296164,-268.99910647,0.0001936,3]
[392661701,1761792298330,-201.99864785,0.0001936,3]
[392661702,1761792298935,5000.0,0.0001936,2]
[392661703,1761792301252,-243.93670868,0.0001936,3]
[392661704,1761792304055,-265.9360461,0.0001936,3]
[392661705,1761792306986,1200.62799965,0.0001936,2]
[392661706,1761792307010,246.68877941,0.0001936,2]
[392661707,1761792307090,421.84304698,0.0001926,2]
[392661708,1761792308840,-310.92562351,0.0001936,3]
[392661709,1761792311016,-194.17091369,0.0001936,3]
[392661710,1761792313153,-160.8061592,0.0001936,3]
[392661711,1761792315699,2990.44266121,0.0001936,2]
[392661712,1761792316683,-239.98752112,0.0001936,3]
[392661713,1761792319016,-380.71823815,0.0001936,3]
[392661714,1761792323531,5000.0,0.0001936,2]
[392661715,1761792323993,-411.28443185,0.0001936,3]
[392661716,1761792326290,-192.87308503,0.0001936,3]
[392661718,1761792331644,475.97434808,0.0001936,2]
[392661719,1761792332423,-224.0385213,0.0001936,3]
[392661720,1761792334822,-372.32481373,0.0001936,3]
[392661721,1761792337760,-242.50869833,0.0001936,3]
[392661722,1761792340000,-196.0,0.0001936,3]
[392661723,1761792342916,-156.05634976,0.0001936,3]
[392661724,1761792347852,865.06116432,0.0001936,2]
[392661725,1761792347882,4134.93883568,0.0001936,2]
[392661726,1761792348617,-189.37621848,0.0001936,3]
[392661727,1761792351027,-194.52940329,0.0001936,3]
[392661728,1761792352673,-202.39586679,0.0001936,3]
[392661729,1761792356238,1541.71783507,0.0001936,2]
[392661730,1761792364231,938.35783832,0.0001936,2]
[392661731,1761792372523,2796.97399461,0.0001936,2]
[392661733,1761792402744,500.0,0.00017999,2]
[392661734,1761792402956,88.02149632,0.00017999,2]
[392661735,1761792402978,411.97850368,0.00017999,2]
[392661736,1761792403207,500.0,0.00017999,2]
[392661737,1761792403505,500.0,0.00017999,2]
[392661738,1761792403776,500.0,0.00019359,2]
[392661739,1761792431756,3469.03,0.00030137,120]
[392661740,1761792442309,500.0,0.00017999,2]
[392661741,1761792442602,500.0,0.00017999,2]
[392661742,1761792442841,500.0,0.00017999,2]
[392661743,1761792443084,500.0,0.00017999,2]
[392661744,1761792443340,500.0,0.00019359,2]
[392661746,1761792453370,169.43549047,0.0001928,2]
[392661750,1761792546133,-92.28116888,0.0001936,3]
[392661751,1761792546153,-311.8300013,0.0001938,2]
[392661752,1761792546176,-440.58103308,0.000194,2]
[392661753,1761792546196,-947.056918,0.00020406,2]
[392661754,1761792546216,-465.68163194,0.00021373,2]
[392661755,1761792546237,-367.95940153,0.0002138,2]
[392661756,1761792546257,-300.0,0.00021424,2]
[392661757,1761792546278,-300.0,0.00021425,2]
[392661758,1761792546298,-1200.0,0.00021425,2]
[392661759,1761792546318,-1158.67591074,0.00021425,2]
[392661760,1761792546817,-41.32408926,0.00021425,2]
[392661761,1761792546844,-300.0,0.00021426,2]
[392661762,1761792546870,-300.0,0.00021426,2]
[392661763,1761792546896,-300.0,0.00021426,2]
[392661764,1761792549129,-9320.52605656,0.00021426,2]
[392661765,1761792550351,-4684.68443173,0.00021426,2]
[392661766,1761792550502,-10000.01,0.00021426,2]
[392661767,1761792550645,-10000.01,0.00021426,2]
[392661768,1761792550781,-10000.01,0.00021426,2]
[392661769,1761792551049,-4005.25048829,0.00021426,2]
[392661770,1761792551073,-1989.50902342,0.00021426,2]
[392661771,1761792552818,-501.82387539,0.00021473,2]
[392661772,1761792552847,-501.00061196,0.00021473,2]
[392661773,1761792552880,-501.22748686,0.00021473,2]
[392661774,1761792552908,-162.48385166,0.00021473,2]
[392661775,1761792552937,-262.57056658,0.00021473,2]
[392661776,1761792552966,-502.66351706,0.00021473,2]
[392661777,1761792552994,-500.0,0.00021473,2]
[392661778,1761792553024,-501.51752996,0.00021473,2]
[392661779,1761792553051,-502.06354049,0.00021473,2]
[392661780,1761792553080,-509.68696749,0.00022021,2]
[392661781,1761792553171,-2174.18877015,0.00022893,2]
[392661782,1761792553203,-2174.18877015,0.00023104,2]
[392661783,1761792553231,-540.32849465,0.00023139,2]
[392661784,1761792553345,-420.0,0.00023294,2]
[392661785,1761792553373,-300.0,0.00023296,2]
[392661786,1761792553404,-1489.0,0.00023296,2]
[392661787,1761792553432,-202.0,0.00023297,2]
[392661788,1761792553460,-424.08880176,0.0002338,2]
[392661789,1761792553489,-500.0,0.00023405,2]
[392661790,1761792553517,-301.87865734,0.00023405,2]
[392661791,1761792553545,-500.0,0.00023405,2]
[392661792,1761792553574,-500.0,0.00023405,2]
[392661793,1761792553605,-226.0750818,0.00023405,2]
[392661794,1761792553633,-273.9249182,0.00023405,2]
[392661795,1761792553653,-567.74730088,0.00023405,2]
[392661796,1761792553678,-500.0,0.00023405,2]
[392661797,1761792553697,-500.0,0.00023405,2]
[392661798,1761792553724,-500.0,0.00023405,2]
[392661799,1761792553744,-500.0,0.00023405,2]
[392661800,1761792553764,-500.0,0.00023405,2]
[392661801,1761792553784,-500.0,0.00023405,2]
[392661802,1761792553805,-421.54006222,0.00023405,2]
[392661803,1761792553825,-500.0,0.00023405,2]
[392661804,1761792553845,-500.0,0.00023405,2]
[392661805,1761792553866,-500.0,0.00023405,2]
[392661806,1761792553886,-500.0,0.00023405,2]
[392661807,1761792553906,-500.0,0.00023405,2]
[392661808,1761792553927,-336.60172701,0.00023405,2]
[392661809,1761792553945,-500.0,0.00023405,2]
[392661810,1761792553965,-500.0,0.00023405,2]
[392661811,1761792553985,-500.0,0.00023405,2]
[392661812,1761792554003,-500.0,0.00023405,2]
[392661813,1761792554031,-500.0,0.00023405,2]
[392661814,1761792554051,-500.0,0.00023405,2]
[392661815,1761792554071,-500.0,0.00023405,2]
[392661816,1761792554090,-112.8390864,0.00023405,2]
[392661817,1761792554319,-387.1609136,0.00023405,2]
[392661818,1761792554348,-500.0,0.00023405,2]
[392661819,1761792554377,-500.0,0.00023405,2]
[392661820,1761792554404,-500.0,0.00023405,2]
[392661821,1761792554432,-242.04450752,0.00023405,2]
[392661822,1761792554459,-500.0,0.00023405,2]
[392661823,1761792554486,-500.0,0.00023405,2]
[392661824,1761792554513,-500.0,0.00023405,2]
[392661825,1761792554539,-500.0,0.00023405,2]
[392661826,1761792554566,-500.0,0.00023405,2]
[392661827,1761792554664,-1583.0,0.00023406,2]
[392661828,1761792554691,-2174.18877015,0.00023496,2]
[392661829,1761792554723,-500.0,0.00023679,2]
[392661830,1761792554894,-2174.18877015,0.00023682,2]
[392661831,1761792554922,-465.68163189,0.0002394,2]
[392661832,1761792554951,-508.09274881,0.00023953,2]
[392661833,1761792554981,-1529.89492815,0.00023984,2]
[392661834,1761792555477,-644.293842,0.00023984,2]
[392661835,1761792555487,-685.72542001,0.00024302,2]
[392661836,1761792555500,-465.68163189,0.00024302,2]
[392661837,1761792555514,-508.09274881,0.00024302,2]
[392661838,1761792555527,-514.68896944,0.00024302,2]
[392661839,1761792555537,-1659.49980071,0.00024486,2]
[392661841,1761792562226,-514.68896944,0.00024486,2]
[392661842,1761792562255,-208.93,0.0002449,10]
[392661843,1761792564096,-502.38159508,0.000245,2]
[392661844,1761792564116,-504.28255434,0.000245,2]
[392661845,1761792564136,-504.07214013,0.000245,2]
[392661846,1761792564156,-2174.18877015,0.00024896,2]
[392661847,1761792564176,-503.29287235,0.00024973,2]
[392661848,1761792564195,-501.38501607,0.00024973,2]
[392661849,1761792564215,-500.0,0.00024973,2]
[392661850,1761792564235,-2174.18877015,0.00025084,2]
[392661851,1761792564255,-453.76536841,0.00025299,2]
[392661852,1761792564281,-1720.42340174,0.00025299,2]
[392661853,1761792564300,-748.79442239,0.00025318,2]
[392661854,1761792564320,-938.90826442,0.00025318,2]
[392661855,1761792564340,-587.0,0.00025328,2]
[392661856,1761792564360,-480.218202,0.0002538,2]
[392661857,1761792564380,-1000.0,0.00025521,2]
[392661858,1761792564401,-2174.18877015,0.00025632,2]
[392661859,1761792564421,-2174.18877015,0.0002581,2]
[392661860,1761792580475,2099.64349525,0.00024953,2]
[392661861,1761792606630,151.0,0.0002491,2]
[392661862,1761792607274,151.0,0.0002491,2]
[392661863,1761792607963,151.0,0.0002491,2]
[392661864,1761792608565,151.0,0.0002491,2]
[392661865,1761792609204,151.0,0.0002491,2]
[392661866,1761792609852,151.0,0.0002491,2]
[392661867,1761792610466,151.0,0.0002491,2]
[392661868,1761792611067,151.0,0.0002491,2]
[392661869,1761792611696,151.0,0.0002491,2]
[392661870,1761792612329,151.0,0.0002491,2]
[392661871,1761792613492,151.0,0.0002491,2]
[392661872,1761792614199,151.0,0.0002491,2]
[392661873,1761792614802,151.0,0.0002491,2]
[392661874,1761792615443,151.0,0.0002491,2]
[392661875,1761792616059,151.0,0.0002491,2]
[392661876,1761792616677,151.0,0.0002491,2]
[392661877,1761792617363,151.0,0.0002491,2]
[392661878,1761792618025,151.0,0.0002491,2]
[392661879,1761792618678,151.0,0.0002491,2]
[392661880,1761792619422,152.36440644,0.0002491,2]
[392661881,1761792622759,151.0,0.0002491,2]
[392661882,1761792623400,151.0,0.0002491,2]
[392661883,1761792624000,151.0,0.0002491,2]
[392661884,1761792624654,151.0,0.0002491,2]
[392661885,1761792625285,151.0,0.0002491,2]
[392661886,1761792625929,151.0,0.0002491,2]
[392661887,1761792626541,151.0,0.0002491,2]
[392661888,1761792627194,151.0,0.0002491,2]
[392661889,1761792627849,151.0,0.0002491,2]
[392661890,1761792629082,151.0,0.0002491,2]
[392661891,1761792629721,151.0,0.0002491,2]
[392661892,1761792630436,151.0,0.0002491,2]
[392661893,1761792631111,151.0,0.0002491,2]
[392661917,1761792631762,151.0,0.0002491,2]
[392661934,1761792631919,-150.0,0.0002618,30]
[392661936,1761792631929,-256.8,0.00026483,3]
[392661938,1761792631938,-297.0,0.00026598,2]
[392661940,1761792631947,-300.0,0.00026598,2]
[392661942,1761792631956,-300.0,0.00026598,2]
[392661944,1761792631966,-15.64315826,0.00026598,2]
[392661946,1761792631976,-600.684,0.00026598,2]
[392661949,1761792631987,-583.67284174,0.00026598,2]
[392661951,1761792631996,-265.0,0.00026598,2]
[392661952,1761792632006,-1041.95530787,0.000266,7]
[392661955,1761792632017,-874.63818407,0.000266,7]
[392661957,1761792632028,-3169.98650806,0.000266,7]
[392661960,1761792632037,-256.8,0.00027289,4]
[392661962,1761792632046,-500.0,0.00027373,2]
[392661965,1761792632203,-536.34760223,0.0002738,2]
[392661966,1761792632213,-503.72463372,0.00027387,2]
[392661974,1761792632379,151.0,0.0002491,2]
[392661993,1761792632991,151.0,0.0002491,2]
[392661995,1761792633651,151.0,0.0002491,2]
[392661996,1761792634312,151.0,0.0002491,2]
[392661997,1761792634918,151.0,0.0002491,2]
[392661998,1761792635621,151.0,0.0002491,2]
[392662006,1761792637837,-245.06978867,0.00027387,2]
[392662007,1761792637848,-79.036281,0.00027387,2]
[392662008,1761792637888,-859.87198342,0.00027387,2]
[392662009,1761792637898,-110.9075153,0.00027396,2]
[392662010,1761792637912,-93.15934326,0.00027396,2]
[392662011,1761792637922,-500.0,0.00027396,2]
[392662012,1761792637931,-491.28222914,0.00027396,2]
[392662013,1761792637941,-582.44938972,0.00027396,2]
[392662014,1761792637950,-500.0,0.00027397,2]
[392662015,1761792637959,-500.0,0.00027397,2]
[392662016,1761792637968,-514.63812803,0.00027397,2]
[392662018,1761792637978,-500.0,0.00027397,2]
[392662019,1761792637987,-501.67293887,0.00027397,2]
[392662020,1761792637995,-225.62845848,0.00027397,2]
[392662026,1761792640926,-3e-08,0.00027397,2]
[392662030,1761792642919,-274.37154149,0.00027397,2]
[392662031,1761792642930,-501.24949845,0.00027397,2]
[392662032,1761792642941,-500.0,0.00027397,2]
[392662033,1761792642951,-501.11913307,0.00027397,2]
[392662034,1761792642962,-501.27334894,0.00027397,2]
[392662035,1761792642972,-500.0,0.00027397,2]
[392662036,1761792642982,-502.23489926,0.00027397,2]
[392662037,1761792642992,-500.0,0.00027397,2]
[392662038,1761792643002,-512.38639624,0.00027397,2]
[392662039,1761792643011,-513.66943404,0.00027397,2]
[392662040,1761792643020,-502.37856025,0.00027397,2]
[392662041,1761792643029,-503.57539154,0.00027397,2]
[392662042,1761792643038,-500.46718576,0.00027397,2]
[392662043,1761792643048,-501.42728673,0.00027397,2]
[392662044,1761792643056,-500.0,0.00027397,2]
[392662045,1761792643065,-501.24540871,0.00027397,2]
[392662047,1761792643074,-500.0,0.00027397,2]
[392662048,1761792643083,-500.0,0.00027397,2]
[392662049,1761792643092,-504.76673358,0.00027397,2]
[392662050,1761792643102,-500.0,0.00027397,2]
[392662051,1761792643111,-500.0,0.00027397,2]
[392662052,1761792643120,-500.0,0.00027397,2]
[392662053,1761792643129,-500.0,0.00027397,2]
[392662054,1761792643138,-551.66975616,0.00027397,2]
[392662055,1761792643147,-500.0,0.00027397,2]
[392662056,1761792643155,-500.0,0.00027397,2]
[392662057,1761792643164,-500.0,0.00027397,2]
[392662058,1761792643173,-500.0,0.00027397,2]
[392662059,1761792643181,-500.0,0.00027397,2]
[392662060,1761792643190,-501.50468755,0.00027397,2]
[392662061,1761792643199,-500.0,0.00027397,2]
[392662062,1761792643207,-492.46,0.00027397,2]
[392662063,1761792643217,-500.0,0.00027397,2]
[392662064,1761792643226,-501.70714632,0.00027397,2]
[392662065,1761792643235,-500.0,0.00027397,2]
[392662066,1761792643244,-501.65949133,0.00027397,2]
[392662067,1761792643252,-500.86089603,0.00027397,2]
[392662071,1761792646045,-349.26122397,0.00027297,2]
[392662072,1761792646056,-1.58743022,0.00027397,2]
[392662073,1761792646065,-500.0,0.00027397,2]
[392662074,1761792646075,-264.92068444,0.00027397,2]
[392662075,1761792646084,-500.0,0.00027397,2]
[392662076,1761792646093,-585.62158203,0.00027397,2]
[392662077,1761792646103,-549.73557131,0.00027397,2]
[392662078,1761792646112,-238.69562739,0.00027397,2]
[392662079,1761792646122,-500.0,0.00027397,2]
[392662080,1761792646131,-593.89642902,0.00027397,2]
[392662081,1761792646140,-500.0,0.00027397,2]
[392662082,1761792646151,-500.0,0.00027397,2]
[392662083,1761792646160,-573.18850925,0.00027397,2]
[392662084,1761792646170,-500.66114021,0.00027397,2]
[392662085,1761792646180,-500.0,0.00027397,2]
[392662086,1761792646188,-538.87394736,0.00027397,2]
[392662087,1761792646199,-500.89519838,0.00027397,2]
[392662088,1761792646208,-500.80795849,0.00027397,2]
[392662089,1761792646218,-520.41286358,0.00027397,2]
[392662090,1761792646227,-360.39895522,0.00027397,2]
[392662091,1761792646238,-566.55,0.00027397,2]
[392662092,1761792646248,-500.0,0.00027397,2]
[392662093,1761792646258,-552.88881054,0.00027397,2]
[392662094,1761792646267,-500.0,0.00027397,2]
[392662095,1761792646277,-500.0,0.00027397,2]
[392662096,1761792646286,-502.16621622,0.00027397,2]
[392662097,1761792646296,-500.0,0.00027397,2]
[392662098,1761792646305,-408.16,0.00027397,2]
[392662099,1761792646314,-320.91,0.00027397,2]
[392662100,1761792646323,-391.72,0.00027397,2]
[392662101,1761792646331,-533.62114889,0.00027397,2]
[392662102,1761792646340,-500.0,0.00027397,2]
[392662103,1761792646349,-511.31426306,0.00027397,2]
[392662104,1761792646359,-500.0,0.00027397,2]
[392662105,1761792646368,-500.0,0.00027397,2]
[392662106,1761792646376,-525.68741993,0.00027397,2]
[392662107,1761792646385,-475.98495183,0.00027397,2]
[392662108,1761792646394,-500.32429418,0.00027397,2]
[392662109,1761792646403,-514.01599205,0.00027397,2]
[392662110,1761792646413,-500.0,0.00027397,2]
[392662111,1761792646422,-500.0,0.00027397,2]
[392662112,1761792646431,-500.0,0.00027397,2]
[392662113,1761792646440,-211.28,0.00027397,2]
[392662114,1761792646449,-500.0,0.00027397,2]
[392662115,1761792646459,-500.0,0.00027397,2]
[392662116,1761792646468,-500.0,0.00027397,2]
[392662117,1761792646477,-500.0,0.00027397,2]
[392662118,1761792646486,-500.0,0.00027397,2]
[392662119,1761792646494,-500.0,0.00027397,2]
[392662120,1761792646504,-500.0,0.00027397,2]
[392662121,1761792646513,-500.0,0.00027397,2]
[392662122,1761792646523,-500.0,0.00027397,2]
[392662123,1761792646533,-230.99377203,0.00027397,2]
[392662124,1761792646543,-500.0,0.00027397,2]
[392662125,1761792646553,-500.0,0.00027397,2]
[392662126,1761792646562,-500.0,0.00027397,2]
[392662127,1761792646572,-500.0,0.00027397,2]
[392662128,1761792646581,-500.0,0.00027397,2]
[392662129,1761792646591,-282.81,0.00027397,2]
[392662130,1761792646600,-500.0,0.00027397,2]
[392662131,1761792646609,-500.0,0.00027397,2]
[392662132,1761792646618,-500.0,0.00027397,2]
[392662133,1761792646627,-485.0,0.00027397,2]
[392662134,1761792646636,-500.0,0.00027671,3]
[392662135,1761792646646,-500.0,0.00027671,4]
[392662136,1761792646655,-280.83010088,0.00027671,4]
[392662137,1761792646665,-380.44405478,0.00027671,4]
[392662138,1761792646674,-166.57880383,0.00027671,4]
[392662139,1761792646683,-247.67647596,0.00027671,4]
[392662140,1761792646693,-526.96961897,0.00027671,4]
[392662141,1761792646702,-500.0,0.00027671,4]
[392662142,1761792646711,-311.85564413,0.00027671,4]
[392662143,1761792646720,-251.282835,0.00027671,4]
[392662144,1761792646729,-500.0,0.00027671,4]
[392662145,1761792646739,-500.0,0.00027671,4]
[392662146,1761792646748,-588.83479749,0.00027671,4]
[392662147,1761792646759,-500.0,0.00027671,4]
[392662148,1761792646770,-500.0,0.00027671,4]
[392662149,1761792646780,-500.0,0.00027671,4]
[392662150,1761792646791,-500.0,0.00027671,4]
[392662151,1761792646801,-175.28653444,0.00027671,4]
[392662152,1761792646810,-500.0,0.00027671,4]
[392662153,1761792646821,-2174.18877015,0.00027848,2]
[392662154,1761792646831,-374.479,0.00027888,18]
[392662155,1761792646841,-1000.0,0.00027921,5]
[392662156,1761792646850,-504.47,0.00027945,3]
[392662157,1761792646859,-500.0,0.00027945,4]
[392662158,1761792646868,-500.0,0.00027945,4]
[392662159,1761792646877,-601.9,0.00027945,4]
[392662160,1761792646888,-500.0,0.00027945,4]
[392662161,1761792646897,-529.46171456,0.00028014,2]
[392662162,1761792646908,-500.0,0.00028014,2]
[392662163,1761792646919,-225.94180993,0.00028014,2]
[392662164,1761792646930,-500.0,0.00028014,2]
[392662165,1761792646942,-500.0,0.00028014,2]
[392662166,1761792646954,-1000.0,0.00028015,2]
[392662167,1761792646964,-1000.0,0.00028015,2]
[392662168,1761792646974,-1000.0,0.00028015,2]
[392662169,1761792646985,-331.09034708,0.00028015,2]
[392662170,1761792646994,-1000.0,0.00028015,2]
[392662171,1761792647004,-1000.0,0.00028015,2]
[392662172,1761792647014,-1000.0,0.00028015,2]
[392662173,1761792647025,-1000.0,0.00028015,2]
[392662174,1761792647036,-181.08010149,0.00028015,2]
[392662175,1761792647046,-1000.0,0.00028015,2]
[392662176,1761792647153,-1000.0,0.00028015,2]
[392662177,1761792647162,-926.99222454,0.00028015,2]
[392662178,1761792647172,-276.63058226,0.00028015,2]
[392662179,1761792647181,-256.8,0.00028094,4]
[392662180,1761792647190,-2174.18877015,0.00028124,2]
[392662181,1761792647199,-151.0,0.00028182,31]
[392662182,1761792647208,-500.0,0.00028219,4]
[392662183,1761792647217,-500.0,0.00028219,4]
[392662184,1761792647227,-500.0,0.00028219,4]
[392662185,1761792647236,-174.11,0.00028221,10]
[392662186,1761792647245,-870.55,0.00028221,10]
[392662187,1761792647255,-7057.1728223,0.0002823,2]
[392662188,1761792647264,-13783.54792727,0.00028231,2]
[392662189,1761792647273,-1000.0,0.000283,5]
[392662190,1761792647283,-1000.0,0.000283,7]
[392662191,1761792647292,-1000.0,0.000283,10]
[392662192,1761792647301,-748.79442239,0.00028304,2]
[392662193,1761792647311,-938.90826442,0.00028304,2]
[392662194,1761792647320,-567.81,0.0002831,3]
[392662195,1761792647330,-1158.94,0.0002831,3]
[392662196,1761792647339,-1158.94,0.00028311,3]
[392662197,1761792647348,-748.79442239,0.0002832,2]
[392662198,1761792647357,-938.90826442,0.0002832,2]
[392662199,1761792647366,-1816.94,0.0002832,3]
[392662200,1761792647375,-1514.12,0.0002832,3]
[392662201,1761792647384,-757.06,0.0002832,3]
[392662202,1761792647393,-378.53,0.0002832,3]
[392662203,1761792647402,-189.26,0.0002832,3]
[392662204,1761792647411,-579.47,0.0002832,3]
[392662205,1761792647420,-289.73,0.0002832,3]
[392662206,1761792647429,-651.9,0.0002832,3]
[392662207,1761792647438,-748.79442239,0.00028321,2]
[392662208,1761792647447,-938.90826442,0.00028321,2]
[392662209,1761792647455,-151.0,0.00028321,31]
[392662210,1761792647464,-500.0,0.00028329,4]
[392662211,1761792647473,-500.0,0.00028329,4]
[392662212,1761792647482,-500.0,0.00028329,4]
[392662213,1761792647491,-500.0,0.00028329,2]
[392662214,1761792647500,-462.30511181,0.00028329,2]
[392662215,1761792647509,-15463.74,0.0002833,2]
[392662216,1761792647518,-503.70654736,0.0002833,4]
[392662217,1761792647527,-501.93742022,0.0002833,4]
[392662218,1761792647537,-505.13482363,0.0002833,4]
[392662219,1761792647546,-500.9940374,0.0002833,4]
[392662220,1761792647556,-500.0,0.0002833,4]
[392662221,1761792647565,-480.0,0.0002833,4]
[392662222,1761792647575,-507.8172935,0.0002833,4]
[392662223,1761792647585,-532.94539209,0.0002833,4]
[392662224,1761792647594,-500.0,0.0002833,4]
[392662225,1761792647603,-322.21191734,0.0002833,4]
[392662226,1761792647613,-506.11895457,0.0002833,4]
[392662227,1761792647622,-518.69706963,0.0002833,4]
[392662228,1761792647631,-500.0,0.0002833,4]
[392662229,1761792647641,-512.07751095,0.0002833,4]
[392662230,1761792647650,-504.47652217,0.0002833,4]
[392662231,1761792647659,-509.01615307,0.0002833,4]
[392662232,1761792647668,-500.0,0.0002833,4]
[392662233,1761792647677,-502.29172723,0.0002833,4]
[392662234,1761792647686,-504.35180638,0.0002833,4]
[392662235,1761792647695,-511.40260771,0.0002833,4]
[392662236,1761792647705,-505.74709411,0.0002833,4]
[392662237,1761792647714,-514.63425161,0.0002833,4]
[392662238,1761792647723,-501.51335149,0.0002833,4]
[392662239,1761792647732,-505.71669347,0.0002833,4]
[392662240,1761792647742,-516.19154841,0.0002833,4]
[392662241,1761792647751,-500.31086184,0.0002833,4]
[392662242,1761792647764,-502.81918499,0.0002833,4]
[392662243,1761792647773,-514.16234368,0.0002833,4]
[392662244,1761792647782,-500.0,0.0002833,4]
[392662245,1761792647791,-500.0,0.0002833,4]
[392662246,1761792647801,-502.28047717,0.0002833,4]
[392662247,1761792647811,-502.0131433,0.0002833,4]
[392662248,1761792647820,-506.40834918,0.0002833,4]
[392662249,1761792647828,-502.31364819,0.0002833,4]
[392662250,1761792647838,-512.78226821,0.0002833,4]
[392662251,1761792647847,-501.04660842,0.0002833,4]
[392662252,1761792647859,-501.52345103,0.0002833,4]
[392662253,1761792647868,-502.71609208,0.0002833,4]
[392662254,1761792647877,-507.00743827,0.0002833,4]
[392662255,1761792647886,-501.63949926,0.0002833,4]
[392662256,1761792647895,-501.47798603,0.0002833,4]
[392662257,1761792647904,-508.81431176,0.0002833,4]
[392662258,1761792647913,-506.90199956,0.0002833,4]
[392662259,1761792647922,-518.57641887,0.0002833,4]
[392662260,1761792647931,-500.0,0.0002833,4]
[392662261,1761792647941,-517.33789401,0.00028331,4]
[392662262,1761792647950,-500.0,0.00028331,4]
[392662263,1761792647959,-506.55227696,0.00028331,4]
[392662264,1761792647968,-501.62760193,0.00028331,4]
[392662265,1761792647978,-537.81140767,0.00028331,4]
[392662266,1761792647987,-611.18975309,0.00028331,4]
[392662267,1761792647996,-509.12963562,0.00028331,4]
[392662268,1761792648005,-502.18644104,0.00028331,4]
[392662269,1761792648014,-502.77329991,0.00028331,4]
[392662270,1761792648023,-509.37541752,0.00028331,4]
[392662271,1761792648032,-507.19811725,0.00028331,4]
[392662272,1761792648042,-502.82379041,0.00028331,4]
[392662273,1761792648051,-500.0,0.00028331,4]
[392662274,1761792648060,-501.08032248,0.00028331,4]
[392662275,1761792648069,-500.0,0.00028331,4]
[392662276,1761792648078,-505.64033666,0.00028331,4]
[392662277,1761792648087,-503.35416443,0.00028331,4]
[392662278,1761792648096,-504.09281134,0.00028331,4]
[392662279,1761792648105,-505.76172309,0.00028331,4]
[392662280,1761792648115,-507.45708578,0.00028331,4]
[392662281,1761792648124,-501.44834947,0.00028331,4]